bitfinex-derivatives/quotes_BTCF0:USTF0_20241223
["timestamp","ask_amount","ask_price","bid_price","bid_amount"]
[1734973415573,0.053412,93738.0,93736.0,0.001]
[1734973415772,0.3608,93739.0,93736.0,0.001]
[1734973416172,0.053412,93738.0,93736.0,0.001]
[1734973416579,0.053415,93733.0,93724.0,0.053419]
[1734973416778,0.001,93738.0,93666.0,0.5822]
[1734973416779,0.3608,93729.0,93711.0,0.053427]
[1734973417078,0.7216,93729.0,93705.0,0.01113548]
[1734973417376,0.3608,93717.0,93709.0,0.053428]
[1734973417874,0.3608,93717.0,93707.0,0.00628848]
[1734973418075,0.3608,93717.0,93716.0,0.053424]
[1734973418378,0.3608,93729.0,93728.0,0.053417]
[1734973418884,0.3608,93729.0,93728.0,0.05970548]
[1734973419379,0.3608,93729.0,93710.0,0.1349088]
[1734973419380,0.418217,93729.0,93717.0,0.00628848]
[1734973419780,0.004,93729.0,93728.0,0.053417]
[1734973420171,0.004,93729.0,93724.0,0.3608]
[1734973420378,0.053419,93725.0,93723.0,0.05342]
[1734973420678,0.004,93729.0,93727.0,0.053418]
[1734973420873,0.094841,93735.0,93727.0,0.053418]
[1734973420874,0.094841,93735.0,93728.0,0.3608]
[1734973421074,0.094841,93735.0,93734.0,0.053414]
[1734973421482,0.094841,93735.0,93734.0,0.05570248]
[1734973421779,0.12698091,93736.0,93735.0,0.053413]
[1734973422671,0.15705835,93745.0,93735.0,0.053413]
[1734973422883,0.15476987,93745.0,93744.0,0.053408]
[1734973423087,0.00853,93749.0,93748.0,0.053406]
[1734973423275,0.15829324,93753.0,93752.0,0.053404]
[1734973423471,0.15829324,93753.0,93752.0,0.414204]
[1734973424281,0.18793571,93761.0,93760.0,0.053399]
[1734973424282,1e-08,93761.0,93760.0,0.053399]
[1734973424576,0.053378,93797.0,93789.0,0.053382]
[1734973425175,0.21925833,93805.0,93785.0,0.3608]
[1734973425373,0.21925833,93805.0,93801.0,0.053376]
[1734973425584,0.21925833,93805.0,93803.0,0.053374]
[1734973426480,0.3608,93818.0,93801.0,0.01121475]
[1734973426481,0.05192363,93809.0,93808.0,0.053372]
[1734973426678,0.05192363,93809.0,93808.0,0.414172]
[1734973427481,0.05192363,93809.0,93808.0,0.425431]
[1734973427680,0.05192363,93820.0,93808.0,0.372059]
[1734973427879,0.05192363,93820.0,93803.0,0.003]
[1734973427880,0.6149889,93820.0,93803.0,0.003]
[1734973428080,0.002,93805.0,93803.0,0.003]
[1734973428282,0.002,93805.0,93799.0,0.053377]
[1734973428283,0.055374,93805.0,93799.0,0.053377]
[1734973428787,0.053374,93805.0,93799.0,0.053377]
[1734973429086,0.053372,93807.0,93799.0,0.053377]
[1734973429585,0.3608,93803.0,93799.0,0.053377]
[1734973429784,0.3608,93812.0,93808.0,0.053372]
[1734973429979,0.3608,93812.0,93798.0,0.3608]
[1734973429980,0.3608,93812.0,93801.0,0.053375]
[1734973430174,0.053373,93806.0,93788.0,0.3608]
[1734973430375,0.3608,93789.0,93762.0,0.3608]
[1734973430583,0.3608,93765.0,93741.0,0.3608]
[1734973430787,0.3608,93756.0,93743.0,0.053408]
[1734973430986,0.3608,93756.0,93744.0,0.053408]
[1734973431188,0.3608,93756.0,93741.0,0.3608]
[1734973431391,0.3608,93756.0,93746.0,0.053407]
[1734973432788,0.3608,93756.0,93744.0,0.004]
[1734973432789,0.053405,93751.0,93744.0,0.004]
[1734973433489,0.053407,93746.0,93744.0,0.004]
[1734973433795,0.3608,93748.0,93734.0,0.3608]
[1734973434092,0.053416,93731.0,93723.0,0.05342]
[1734973434685,0.3608,93732.0,93716.0,0.053424]
[1734973434898,0.3608,93732.0,93725.0,0.053419]
[1734973435288,0.3608,93732.0,93715.0,0.36971175]
[1734973435289,0.3608,93732.0,93723.0,0.003]
[1734973435495,0.3608,93732.0,93725.0,0.053419]
[1734973435691,0.05194583,93731.0,93725.0,0.053419]
[1734973436093,0.05194583,93731.0,93727.0,0.053418]
[1734973436299,0.05194583,93731.0,93728.0,0.053417]
[1734973437100,0.05194583,93731.0,93725.0,0.001]
[1734973437593,0.05194583,93731.0,93719.0,0.053422]
[1734973437995,0.053418,93727.0,93719.0,0.053422]
[1734973438183,0.05194583,93731.0,93729.0,0.053416]
[1734973439395,0.05194583,93731.0,93719.0,0.00922928]
[1734973439396,0.05194583,93731.0,93722.0,0.05342]
[1734973439703,0.09533831,93731.0,93719.0,0.00922928]
[1734973440000,0.09533831,93731.0,93730.0,0.053416]
[1734973441302,0.09533831,93741.0,93729.0,0.3608]
[1734973441599,0.09533831,93741.0,93740.0,0.414211]
[1734973442192,0.053393,93771.0,93769.0,0.053394]
[1734973442905,0.053394,93769.0,93764.0,0.3608]
[1734973443202,0.4215236,93780.0,93756.0,0.3608]
[1734973443203,0.3608,93770.0,93756.0,0.3608]
[1734973443391,0.56306527,93770.0,93757.0,0.0534]
[1734973443591,0.053399,93761.0,93746.0,0.36815066]
[1734973443791,0.3608,93749.0,93743.0,0.232]
[1734973443994,0.3608,93749.0,93741.0,0.00712241]
[1734973444205,0.053413,93735.0,93727.0,0.053418]
[1734973444403,0.3608,93735.0,93723.0,0.23916893]
[1734973444790,0.3608,93735.0,93733.0,0.053414]
[1734973445191,0.3608,93749.0,93723.0,0.23916893]
[1734973445396,0.001,93735.0,93723.0,0.23916893]
[1734973445592,0.001,93735.0,93734.0,0.053414]
[1734973445798,0.001,93735.0,93734.0,0.414214]
[1734973446000,0.053408,93746.0,93740.0,0.05341]
[1734973446201,0.053408,93746.0,93734.0,0.3608]
[1734973446501,0.3608,93749.0,93734.0,0.3608]
[1734973446799,0.001,93735.0,93734.0,0.414214]
[1734973447402,0.001,93735.0,93734.0,0.3608]
[1734973447700,0.054413,93735.0,93734.0,0.001]
[1734973449203,0.053413,93735.0,93734.0,0.001]
[1734973449795,0.054413,93735.0,93734.0,0.001]
[1734973450404,0.1679,93740.0,93721.0,0.053421]
[1734973450610,0.1679,93740.0,93721.0,0.06071255]
[1734973451000,0.3608,93732.0,93721.0,0.00729155]
[1734973451199,0.3608,93732.0,93704.0,0.36240056]
[1734973451200,0.3608,93732.0,93720.0,0.3608]
[1734973451504,0.3608,93732.0,93730.0,0.053416]
[1734973452105,0.003,93735.0,93734.0,0.053414]
[1734973452497,0.3608,93740.0,93738.0,0.053412]
[1734973452704,0.1905794,93744.0,93738.0,0.053412]
[1734973452705,8e-07,93744.0,93743.0,0.053409]
[1734973452905,0.21925833,93760.0,93759.0,0.0534]
[1734973453107,0.21925833,93760.0,93759.0,0.775]
[1734973453505,0.03884944,93769.0,93767.0,0.053395]
[1734973453699,0.03884944,93769.0,93768.0,0.3608]
[1734973454413,0.03884944,93769.0,93768.0,0.6608]
[1734973454807,0.03884944,93769.0,93768.0,0.8928]
[1734973455110,0.15883532,93786.0,93783.0,0.053386]
[1734973455305,0.15883532,93786.0,93785.0,0.053385]
[1734973456706,0.053381,93793.0,93783.0,0.3608]
[1734973456907,0.15883532,93797.0,93783.0,0.3608]
[1734973457314,0.414181,93792.0,93783.0,0.36818011]
[1734973457498,0.3608,93792.0,93783.0,0.36818011]
[1734973458011,0.3608,93792.0,93768.0,0.3608]
[1734973458012,0.053397,93765.0,93764.0,0.00727693]
[1734973458319,0.053397,93765.0,93753.0,0.053403]
[1734973458320,0.053399,93761.0,93753.0,0.053403]
[1734973458513,0.053399,93761.0,93754.0,0.053402]
[1734973458704,0.053399,93761.0,93756.0,0.053401]
[1734973459211,0.15883532,93758.0,93752.0,0.053404]
[1734973459414,0.053404,93752.0,93748.0,0.053406]
[1734973459612,0.21223632,93758.0,93747.0,0.00742879]
[1734973459815,0.21223632,93758.0,93753.0,0.053403]
[1734973460113,0.15883532,93758.0,93754.0,0.053402]
[1734973460313,0.15883532,93758.0,93757.0,0.053401]
[1734973460706,0.3608,93765.0,93750.0,0.3608]
[1734973460907,0.3608,93765.0,93751.0,0.053404]
[1734973461204,0.053403,93754.0,93741.0,0.36808202]
[1734973461409,0.053403,93754.0,93746.0,0.053407]
[1734973461818,0.053403,93754.0,93748.0,0.053406]
[1734973462027,0.3608,93757.0,93741.0,0.36808202]
[1734973462217,0.053409,93743.0,93738.0,0.05501093]
[1734973462515,0.053411,93739.0,93738.0,0.00159993]
[1734973462716,0.3608,93739.0,93738.0,0.00159993]
[1734973462907,0.3608,93749.0,93747.0,0.053406]
[1734973463311,0.20233048,93751.0,93738.0,0.00159993]
[1734973463518,0.21925833,93752.0,93751.0,0.053404]
[1734973463720,0.002,93754.0,93753.0,0.053403]
[1734973464415,0.3608,93761.0,93757.0,0.0534]
[1734973464606,0.3608,93761.0,93752.0,0.053403]
[1734973464607,0.0534,93759.0,93752.0,0.053403]
[1734973465012,0.0534,93759.0,93753.0,0.053403]
[1734973465410,0.30822319,93759.0,93738.0,0.00159993]
[1734973465614,0.3608,93753.0,93738.0,0.00886897]
[1734973465913,0.3608,93753.0,93751.0,0.053404]
[1734973466815,0.3608,93753.0,93738.0,0.00159993]
[1734973467016,0.3608,93753.0,93751.0,0.053404]
[1734973467607,0.002,93759.0,93758.0,0.0534]
[1734973467802,0.002,93759.0,93745.0,0.3608]
[1734973467803,0.002,93759.0,93745.0,0.053408]
[1734973468011,0.053406,93748.0,93738.0,0.00159993]
[1734973468313,0.3608,93742.0,93738.0,0.00159993]
[1734973468621,0.3608,93742.0,93739.0,0.053411]
[1734973468917,0.42533236,93760.0,93738.0,0.00159993]
[1734973468918,0.05341,93741.0,93738.0,0.00159993]
[1734973469108,0.52018788,93747.0,93738.0,0.00159993]
[1734973469411,0.52018788,93747.0,93743.0,0.053409]
[1734973469610,0.52018788,93747.0,93738.0,0.00159993]
[1734973469803,0.52018788,93747.0,93746.0,0.053407]
[1734973470415,0.3608,93747.0,93746.0,0.053407]
[1734973471511,0.41274769,93747.0,93746.0,0.053407]
[1734973472012,0.05194769,93747.0,93746.0,0.053407]
[1734973472615,0.05194769,93747.0,93746.0,0.353407]
[1734973472816,0.05194769,93747.0,93746.0,0.714207]
[1734973473310,0.15941485,93760.0,93746.0,0.414207]
[1734973473512,0.15941485,93760.0,93752.0,0.053403]
[1734973473816,0.053403,93754.0,93752.0,0.053403]
[1734973474016,0.3608,93753.0,93752.0,0.053403]
[1734973474211,0.15941485,93760.0,93758.0,0.0534]
[1734973474415,0.21281385,93760.0,93758.0,0.0534]
[1734973474616,0.10634152,93760.0,93758.0,0.0534]
[1734973475209,0.053403,93753.0,93748.0,0.053406]
[1734973475416,0.3608,93754.0,93738.0,0.00159993]
[1734973475615,0.3608,93752.0,93738.0,0.00159993]
[1734973475912,0.3608,93753.0,93740.0,0.05341]
[1734973476119,0.41274252,93753.0,93752.0,0.053404]
[1734973477314,0.41474252,93753.0,93752.0,0.053404]
[1734973478509,0.05394252,93753.0,93752.0,0.053404]
[1734973478814,0.00160066,93777.0,93775.0,0.053391]
[1734973479921,0.00160066,93777.0,93749.0,0.3608]
[1734973480217,0.05339,93776.0,93773.0,0.053392]
[1734973480721,0.3608,93774.0,93773.0,0.053392]
[1734973480921,0.3608,93774.0,93749.0,0.36799225]
[1734973481111,0.414191,93774.0,93770.0,0.053393]
[1734973481315,0.414191,93774.0,93771.0,0.053393]
[1734973481509,0.3608,93774.0,93772.0,0.053392]
[1734973481917,0.3608,93774.0,93765.0,0.053396]
[1734973482111,0.3608,93774.0,93750.0,0.053404]
[1734973482315,0.3608,93764.0,93749.0,0.36899225]
[1734973482717,0.3608,93764.0,93749.0,0.36799225]
[1734973483218,0.3628,93774.0,93750.0,0.43443132]
[1734973483416,0.3608,93774.0,93773.0,0.053392]
[1734973485420,0.25535242,93776.0,93775.0,0.053391]
[1734973485621,0.00160066,93777.0,93775.0,0.053391]
[1734973486616,0.001,93774.0,93773.0,0.3681292]
[1734973487416,0.00860066,93777.0,93776.0,0.05339]
[1734973488426,0.00260066,93777.0,93776.0,0.05339]
[1734973489024,0.00960066,93777.0,93776.0,0.05339]
[1734973489222,0.008,93777.0,93776.0,0.05339]
[1734973489623,0.005,93777.0,93773.0,0.3681292]
[1734973489924,0.005,93777.0,93776.0,0.05339]
[1734973490824,0.007,93777.0,93776.0,0.05339]
[1734973491323,0.007,93777.0,93773.0,0.0073292]
[1734973491324,0.06239,93777.0,93773.0,0.0073292]
[1734973491530,0.06239,93777.0,93771.0,0.053393]
[1734973491727,0.06239,93777.0,93764.0,0.3608]
[1734973491728,0.002,93777.0,93764.0,0.3608]
[1734973491922,0.007,93777.0,93764.0,0.3608]
[1734973492230,0.007,93777.0,93765.0,0.232]
[1734973492432,0.007,93777.0,93776.0,0.05339]
[1734973493030,0.3628,93777.0,93755.0,0.00725953]
[1734973493229,0.3628,93777.0,93746.0,0.3608]
[1734973493230,0.3608,93777.0,93750.0,0.20243132]
[1734973493434,0.053394,93770.0,93763.0,0.053397]
[1734973493623,0.3608,93769.0,93763.0,0.053397]
[1734973493824,0.3608,93769.0,93766.0,0.053396]
[1734973494431,0.05193773,93768.0,93766.0,0.053396]
[1734973496028,0.05293773,93768.0,93766.0,0.053396]
[1734973496328,0.05293773,93768.0,93766.0,0.06145405]
[1734973497033,0.05193773,93767.0,93766.0,0.06145405]
[1734973497221,0.05193773,93767.0,93766.0,0.06245405]
[1734973498129,0.41273773,93767.0,93766.0,0.00805805]
[1734973498330,0.41373773,93767.0,93766.0,0.001]
[1734973499331,0.41273773,93767.0,93766.0,0.001]
[1734973499547,0.41673773,93767.0,93766.0,0.001]
[1734973500123,0.053396,93766.0,93760.0,0.053399]
[1734973500327,0.053398,93762.0,93756.0,0.00804119]
[1734973500530,0.053398,93762.0,93756.0,0.053401]
[1734973500925,0.41829774,93767.0,93754.0,0.00783052]
[1734973501228,0.41829774,93767.0,93739.0,0.232]
[1734973501229,0.41773773,93767.0,93758.0,0.3608]
[1734973501430,0.41373773,93767.0,93760.0,0.053399]
[1734973501625,0.41373773,93767.0,93756.0,0.001]
[1734973501626,0.41273773,93767.0,93756.0,0.001]
[1734973501822,0.0534,93758.0,93746.0,0.00849387]
[1734973502027,0.053411,93739.0,93724.0,0.3608]
[1734973502238,0.414211,93739.0,93730.0,0.053416]
[1734973502438,0.414211,93739.0,93724.0,0.3608]
[1734973502736,0.053423,93719.0,93717.0,0.25097617]
[1734973502930,0.3608,93718.0,93717.0,0.25097617]
[1734973503624,0.3608,93724.0,93717.0,0.25097617]
[1734973503832,0.3608,93724.0,93721.0,0.053421]
[1734973504132,0.3608,93724.0,93712.0,0.053426]
[1734973504435,0.3608,93714.0,93700.0,0.1]
[1734973504636,0.3608,93706.0,93700.0,0.1]
[1734973504834,0.3608,93723.0,93700.0,0.10863737]
[1734973505032,0.41422,93723.0,93712.0,0.053426]
[1734973505336,0.15946855,93717.0,93714.0,0.053425]
[1734973505736,0.15946855,93717.0,93715.0,0.053425]
[1734973506632,0.41329774,93723.0,93716.0,0.053424]
[1734973506633,0.2433,93722.0,93716.0,0.053424]
[1734973507032,0.3608,93721.0,93716.0,0.053424]
[1734973507229,0.053433,93701.0,93700.0,0.1]
[1734973507538,0.414233,93701.0,93700.0,0.1]
[1734973507935,0.414233,93701.0,93685.0,0.00160087]
[1734973508140,0.3608,93686.0,93685.0,0.00160087]
[1734973508331,0.3608,93686.0,93685.0,0.01011081]
[1734973508533,0.3608,93686.0,93685.0,0.00160087]
[1734973509840,0.3608,93686.0,93685.0,0.01025013]
[1734973510141,0.7216,93686.0,93685.0,0.00160087]
[1734973511433,0.7226,93686.0,93685.0,0.00160087]
[1734973511641,0.7226,93686.0,93659.0,0.1692]
[1734973511642,0.7226,93686.0,93665.0,0.053453]
[1734973511945,0.7226,93686.0,93630.0,0.13130318]
[1734973511946,0.3608,93667.0,93649.0,0.053462]
[1734973512249,0.3608,93657.0,93649.0,0.053462]
[1734973512547,0.3608,93657.0,93643.0,0.0016016]
[1734973512846,0.3608,93647.0,93643.0,0.01000283]
[1734973513041,0.053465,93645.0,93643.0,0.0016016]
[1734973513230,0.3608,93644.0,93643.0,0.0016016]
[1734973514341,0.3608,93644.0,93608.0,0.3608]
[1734973514642,0.3608,93624.0,93608.0,0.3608]
[1734973514941,0.3608,93615.0,93606.0,0.053487]
[1734973515142,0.3608,93615.0,93600.0,0.1085934]
[1734973515341,0.3608,93615.0,93611.0,0.053484]
[1734973515840,0.3608,93615.0,93600.0,0.1085934]
[1734973516047,0.3608,93605.0,93600.0,0.1]
[1734973516545,0.3608,93605.0,93600.0,0.10857809]
[1734973516847,0.05349,93602.0,93600.0,0.1]
[1734973517541,0.3608,93604.0,93598.0,0.00160239]
[1734973517746,0.053495,93592.0,93572.0,0.053506]
[1734973518049,0.3608,93585.0,93561.0,0.7633]
[1734973518245,0.3608,93585.0,93561.0,1.07169026]
[1734973518439,0.3608,93585.0,93569.0,0.3608]
[1734973519331,0.3608,93585.0,93569.0,0.053508]
[1734973519332,0.13130318,93580.0,93569.0,0.053508]
[1734973519531,0.3608,93577.0,93569.0,0.053508]
[1734973519939,0.053509,93567.0,93561.0,0.36919026]
[1734973520143,0.3608,93566.0,93557.0,0.3608]
[1734973520346,0.3608,93566.0,93553.0,0.001603]
[1734973520347,0.3608,93558.0,93553.0,0.001603]
[1734973520538,0.414317,93554.0,93539.0,0.232]
[1734973520848,0.3608,93544.0,93540.0,0.13130318]
[1734973521043,0.053507,93571.0,93551.0,0.053518]
[1734973521348,0.001,93566.0,93550.0,0.13130318]
[1734973521642,0.001,93566.0,93552.0,0.3608]
[1734973521848,0.3608,93553.0,93540.0,0.00861746]
[1734973522053,0.3608,93542.0,93535.0,0.053528]
[1734973522242,0.3608,93542.0,93535.0,0.3608]
[1734973522546,0.3608,93542.0,93540.0,0.053525]
[1734973523448,0.001,93544.0,93540.0,0.053525]
[1734973523649,0.3608,93553.0,93535.0,0.3608]
[1734973523952,0.3608,93563.0,93561.0,0.053513]
[1734973525038,0.005,93563.0,93562.0,0.3608]
[1734973525343,0.005,93563.0,93561.0,0.06217649]
[1734973525539,0.3608,93568.0,93561.0,0.00866349]
[1734973525745,0.3608,93568.0,93555.0,0.053516]
[1734973526047,0.3608,93568.0,93560.0,0.414313]
[1734973526438,0.3608,93578.0,93566.0,0.05351]
[1734973526637,0.3608,93568.0,93554.0,0.0085562]
[1734973526838,0.3608,93568.0,93560.0,0.3608]
[1734973527043,0.3608,93568.0,93563.0,0.053512]
[1734973527451,0.3608,93568.0,93553.0,0.053517]
[1734973527645,0.3608,93560.0,93551.0,0.3608]
[1734973527839,0.001,93568.0,93551.0,0.6608]
[1734973528035,0.001,93568.0,93559.0,0.3608]
[1734973528237,0.3608,93569.0,93559.0,0.3608]
[1734973528440,0.053501,93581.0,93566.0,0.053509]
[1734973528644,0.3608,93587.0,93566.0,0.053509]
[1734973528850,0.053502,93580.0,93566.0,0.053509]
[1734973529145,0.3608,93587.0,93570.0,0.13130318]
[1734973529347,0.3608,93587.0,93581.0,0.053501]
[1734973529564,0.3608,93587.0,93575.0,0.3608]
[1734973529749,0.3608,93587.0,93585.0,0.053499]
[1734973530949,0.008,93587.0,93585.0,0.414299]
[1734973531150,0.01,93587.0,93585.0,0.414299]
[1734973531543,0.009,93587.0,93585.0,0.414299]
[1734973532851,0.3608,93599.0,93597.0,0.053492]
[1734973534047,0.053494,93595.0,93585.0,0.3608]
[1734973534254,0.3658,93599.0,93570.0,0.13130318]
[1734973534255,0.053499,93586.0,93573.0,0.053505]
[1734973534455,0.3608,93580.0,93578.0,0.053503]
[1734973534750,0.3608,93580.0,93570.0,0.13968883]
[1734973534951,0.3608,93580.0,93574.0,0.053505]
[1734973535151,0.3608,93580.0,93576.0,0.053504]
[1734973535546,0.3648,93580.0,93576.0,0.053504]
[1734973535950,0.3648,93580.0,93564.0,0.36923076]
[1734973536258,0.3608,93571.0,93564.0,0.00843076]
[1734973536451,0.3608,93571.0,93570.0,0.053508]
[1734973537258,0.053509,93568.0,93554.0,0.053517]
[1734973537554,0.053509,93568.0,93541.0,0.53]
[1734973537555,0.3608,93555.0,93549.0,0.00869037]
[1734973537756,0.053518,93552.0,93532.0,0.3608]
[1734973537958,0.3608,93555.0,93540.0,0.13980459]
[1734973538160,0.00839246,93571.0,93547.0,0.3608]
[1734973538345,0.3608,93572.0,93547.0,0.3608]
[1734973538346,0.3608,93572.0,93555.0,0.3608]
[1734973538663,0.3608,93572.0,93563.0,0.053511]
[1734973538956,0.3608,93572.0,93570.0,0.003]
[1734973539962,0.3618,93572.0,93571.0,0.053507]
[1734973540347,0.001,93572.0,93571.0,0.053507]
[1734973540751,0.3608,93580.0,93575.0,0.053504]
[1734973541059,0.053503,93579.0,93570.0,0.003]
[1734973541250,0.3608,93571.0,93570.0,0.003]
[1734973541450,0.3608,93571.0,93568.0,0.053508]
[1734973541854,0.3608,93571.0,93569.0,0.053508]
[1734973543256,0.001,93571.0,93570.0,0.01150452]
[1734973543452,0.006,93580.0,93579.0,0.053502]
[1734973543653,0.15902325,93588.0,93587.0,0.053498]
[1734973544748,0.15902325,93588.0,93587.0,0.054498]
[1734973544950,0.009,93588.0,93587.0,0.001]
[1734973546257,0.009,93588.0,93587.0,0.054498]
[1734973546258,0.013,93588.0,93587.0,0.054498]
[1734973546759,0.013,93588.0,93587.0,0.06601449]
[1734973548156,0.013,93588.0,93587.0,0.054498]
[1734973548957,0.066497,93588.0,93587.0,0.001]
[1734973549461,0.013,93588.0,93587.0,0.001]
[1734973549851,0.004,93588.0,93587.0,0.004]
[1734973550453,0.004,93588.0,93587.0,0.003]
[1734973550963,0.004,93588.0,93585.0,0.053499]
[1734973551258,0.007,93588.0,93585.0,0.053499]
[1734973551467,0.004,93588.0,93578.0,0.00871726]
[1734973551762,0.003,93588.0,93587.0,0.003]
[1734973552560,0.003,93588.0,93586.0,0.053498]
[1734973553060,0.002,93588.0,93586.0,0.053498]
[1734973553560,0.001,93588.0,93578.0,0.053502]
[1734973553757,0.001,93588.0,93586.0,0.003]
[1734973553956,0.053498,93587.0,93586.0,0.003]
[1734973554650,0.053498,93587.0,93579.0,0.053502]
[1734973554853,0.3608,93580.0,93579.0,0.053502]
[1734973555250,0.3608,93580.0,93572.0,0.053506]
[1734973555664,0.3608,93580.0,93566.0,0.24041509]
[1734973555665,0.3608,93580.0,93566.0,0.00841509]
[1734973555863,0.3608,93571.0,93565.0,0.05351]
[1734973556063,0.3608,93571.0,93569.0,0.053508]
[1734973556365,0.3608,93580.0,93562.0,0.36913678]
[1734973556366,0.52084119,93580.0,93562.0,0.36913678]
[1734973556567,0.52084119,93580.0,93579.0,0.053502]
[1734973557272,0.52084119,93580.0,93573.0,0.053505]
[1734973557461,0.3608,93580.0,93566.0,0.001]
[1734973557963,0.3608,93571.0,93566.0,0.001]
[1734973558164,0.053509,93568.0,93566.0,0.001]
[1734973558754,0.12804965,93568.0,93562.0,0.01333678]
[1734973558959,0.053511,93565.0,93562.0,0.01333678]
[1734973559163,0.053511,93565.0,93562.0,0.01033678]
[1734973559364,0.053512,93563.0,93562.0,0.002]
[1734973559666,0.05351,93567.0,93560.0,0.00878145]
[1734973559970,0.053517,93554.0,93550.0,0.0016032]
[1734973560168,0.3608,93554.0,93550.0,0.0016032]
[1734973560470,0.053518,93551.0,93550.0,0.0016032]
[1734973561859,0.053518,93551.0,93550.0,0.0046032]
[1734973562064,0.11456274,93551.0,93550.0,0.0046032]
[1734973562263,0.47536274,93551.0,93550.0,0.0046032]
[1734973562465,0.47536274,93551.0,93550.0,0.0096032]
[1734973562764,0.47636274,93551.0,93550.0,0.0066032]
[1734973562965,0.4138583,93551.0,93550.0,0.0066032]
[1734973563169,0.4168583,93551.0,93550.0,0.0016032]
[1734973564773,0.0550583,93551.0,93550.0,0.0016032]
[1734973564971,0.3608,93561.0,93550.0,0.01314913]
[1734973565173,0.14616109,93557.0,93556.0,0.414315]
[1734973565366,0.14616109,93557.0,93556.0,0.42586093]
[1734973565674,0.19191548,93565.0,93564.0,0.053511]
[1734973565868,0.19191548,93565.0,93564.0,0.06505693]
[1734973566066,0.19191548,93565.0,93564.0,0.01154593]
[1734973566268,0.053516,93555.0,93554.0,0.053517]
[1734973566470,0.053516,93555.0,93554.0,0.06507894]
[1734973566673,0.001,93557.0,93556.0,0.053516]
[1734973566878,0.09593125,93566.0,93556.0,0.01156194]
[1734973567086,0.059511,93565.0,93564.0,0.001]
[1734973567982,0.061511,93565.0,93564.0,0.001]
[1734973568281,0.008,93565.0,93564.0,0.001]
[1734973568468,0.002,93565.0,93563.0,0.053511]
[1734973568980,0.05551,93565.0,93557.0,0.053515]
[1734973569170,0.053511,93564.0,93551.0,0.053518]
[1734973569482,0.053511,93564.0,93552.0,0.01161825]
[1734973569668,0.053511,93564.0,93551.0,0.053518]
[1734973569869,0.053511,93564.0,93554.0,0.053517]
[1734973570976,0.053512,93562.0,93554.0,0.053517]
[1734973571166,0.053513,93561.0,93554.0,0.053517]
[1734973571373,0.053513,93561.0,93558.0,0.053514]
[1734973572676,0.054513,93561.0,93558.0,0.053514]
[1734973574371,0.3608,93569.0,93560.0,0.3608]
[1734973574593,0.3608,93587.0,93577.0,0.053504]
[1734973574771,0.3608,93587.0,93583.0,0.0535]
[1734973575568,0.3608,93587.0,93576.0,0.3608]
[1734973575773,0.3608,93587.0,93585.0,0.053499]
[1734973575973,0.3738,93587.0,93585.0,0.053499]
[1734973576175,0.053512,93563.0,93560.0,0.3608]
[1734973576477,0.3608,93563.0,93544.0,0.3608]
[1734973576674,0.3608,93563.0,93550.0,0.08951779]
[1734973576882,0.3608,93563.0,93562.0,0.053512]
[1734973577084,0.3608,93581.0,93554.0,0.3608]
[1734973577085,0.053504,93576.0,93554.0,0.3608]
[1734973577270,0.053504,93576.0,93560.0,0.08791459]
[1734973577473,0.053504,93576.0,93568.0,0.053508]
[1734973577671,0.3608,93571.0,93550.0,0.01104437]
[1734973577971,0.3608,93571.0,93559.0,0.053513]
[1734973577972,0.053512,93564.0,93559.0,0.053513]
[1734973578767,0.414307,93571.0,93561.0,0.053512]
[1734973579173,0.414307,93571.0,93552.0,0.3608]
[1734973579483,0.415307,93571.0,93562.0,0.053512]
[1734973580983,0.053509,93567.0,93556.0,0.053515]
[1734973581179,0.05351,93566.0,93556.0,0.053515]
[1734973581381,0.053517,93554.0,93552.0,0.002]
[1734973581574,0.3608,93553.0,93552.0,0.002]
[1734973581782,0.053518,93552.0,93529.0,0.3608]
[1734973581974,0.05353,93531.0,93520.0,0.25097617]
[1734973582171,0.053535,93523.0,93521.0,0.01177052]
[1734973582378,0.053536,93521.0,93520.0,0.0093414]
[1734973582590,0.053539,93516.0,93511.0,0.25097617]
[1734973582879,0.053539,93516.0,93511.0,0.26046646]
[1734973583177,0.3608,93522.0,93511.0,0.25097617]
[1734973583384,0.053539,93516.0,93511.0,0.25097617]
[1734973583977,0.053539,93516.0,93509.0,0.053542]
[1734973583978,0.05204819,93515.0,93509.0,0.053542]
[1734973584176,0.05204819,93515.0,93509.0,0.00926323]
[1734973584380,0.05204819,93515.0,93509.0,0.053542]
[1734973584575,0.05204819,93515.0,93511.0,0.001]
[1734973584772,0.05204819,93515.0,93512.0,0.053541]
[1734973584975,0.05204819,93515.0,93514.0,0.05354]
[1734973585181,0.05304819,93515.0,93514.0,0.05354]
[1734973585382,0.001,93515.0,93514.0,0.05354]
[1734973585778,0.001,93515.0,93511.0,0.001]
[1734973585779,0.05204819,93519.0,93515.0,0.053539]
[1734973586379,0.05204819,93519.0,93500.0,0.23187645]
[1734973586380,0.179,93518.0,93500.0,0.1]
[1734973586584,0.053553,93490.0,93489.0,0.01315053]
[1734973586880,0.414353,93490.0,93489.0,0.01315053]
[1734973587284,0.3608,93490.0,93489.0,0.01315053]
[1734973588482,0.053559,93481.0,93466.0,0.053567]
[1734973588675,0.3608,93477.0,93466.0,0.053567]
[1734973588876,0.3608,93477.0,93462.0,0.3608]
[1734973589077,0.3608,93477.0,93470.0,0.053565]
[1734973589776,0.3618,93477.0,93470.0,0.053565]
[1734973590186,0.09569262,93473.0,93470.0,0.053565]
[1734973590486,0.09569262,93473.0,93462.0,0.37002769]
[1734973590884,0.3608,93469.0,93462.0,0.37002769]
[1734973591077,0.053569,93464.0,93449.0,0.414377]